bitfinex/quotes_SOLUSD_20260213
["timestamp","ask_amount","ask_price","bid_price","bid_amount"]
[1770989596399,11.42978086,80.54,80.49,11.42978086]
[1770989596820,11.42978086,80.54,80.501,12.42220593]
[1770989597023,11.42978086,80.53,80.496,12.42289982]
[1770989597228,11.42978086,80.54,80.496,12.42289982]
[1770989597627,11.42978086,80.54,80.491,12.42362523]
[1770989597916,11.42978086,80.54,80.5,11.42978086]
[1770989598123,11.42978086,80.53,80.491,43.48299832]
[1770989599329,11.42978086,80.54,80.491,43.48299832]
[1770989600021,11.42978086,80.53,80.48,11.42978086]
[1770989600321,11.42978086,80.54,80.5,11.42978086]
[1770989600515,11.42978086,80.55,80.5,11.42978086]
[1770989600718,49.88,80.549,80.5,11.42978086]
[1770989600907,23.84611433,80.54,80.501,12.42220593]
[1770989601428,12.41633347,80.54,80.501,12.42220593]
[1770989601648,23.84611433,80.54,80.501,12.42220593]
[1770989602343,1.6,80.586,80.52,11.42978086]
[1770989602635,11.42978086,80.57,80.53,11.42978086]
[1770989603018,12.41172162,80.569,80.531,12.41757832]
[1770989604038,11.42978086,80.55,80.512,12.42050874]
[1770989604239,11.42978086,80.54,80.467,49.70944097]
[1770989604435,11.42978086,80.53,80.49,11.42978086]
[1770989604643,11.42978086,80.55,80.51,11.42978086]
[1770989605137,11.43896204,80.56,80.52,11.43896204]
[1770989605353,12.41204239,80.567,80.53,11.43896204]
[1770989605936,23.85065693,80.57,80.53,11.43896204]
[1770989606139,12.40973573,80.582,80.54,11.43896204]
[1770989606326,12.40325461,80.624,80.56,11.43896204]
[1770989606529,11.43896204,80.59,80.54,11.43896204]
[1770989607241,11.43896204,80.56,80.521,12.41912047]
[1770989607635,11.43896204,80.58,80.53,11.43896204]
[1770989607844,11.43896204,80.57,80.53,11.43896204]
[1770989608031,11.43896204,80.56,80.521,43.46692166]
[1770989608225,11.43896204,80.56,80.521,12.41912047]
[1770989608421,11.43896204,80.57,80.521,12.41912047]
[1770989608625,11.43896204,80.58,80.521,43.46692166]
[1770989608939,11.43896204,80.58,80.54,11.43896204]
[1770989609243,49.5,80.594,80.54,11.43896204]
[1770989609244,11.43896204,80.59,80.54,11.43896204]
[1770989609645,11.43896204,80.61,80.56,11.43896204]
[1770989609836,43.40331601,80.639,80.58,11.43896204]
[1770989610043,11.43896204,80.6,80.56,11.43896204]
[1770989610540,11.43896204,80.61,80.56,11.43896204]
[1770989610742,11.43896204,80.61,80.57,11.43896204]
[1770989610945,11.43896204,80.61,80.56,11.43896204]
[1770989611154,12.40556265,80.609,80.561,12.41295415]
[1770989611324,11.43896204,80.61,80.561,12.41295415]
[1770989611531,12.40556265,80.609,80.561,43.44533954]
[1770989612346,12.40556265,80.609,80.57,11.43896204]
[1770989613222,49.38,80.628,80.58,11.43896204]
[1770989613428,11.43896204,80.62,80.58,11.43896204]
[1770989613629,49.38,80.628,80.58,11.43896204]
[1770989614230,11.43896204,80.63,80.58,11.43896204]
[1770989615237,12.40055589,80.642,80.6,11.43896204]
[1770989615843,12.39949082,80.649,80.6,11.43896204]
[1770989616150,12.39949082,80.649,80.61,11.43896204]
[1770989616331,0.1,80.68,80.64,11.43896204]
[1770989616529,0.1,80.68,80.66,11.43896204]
[1770989616740,0.1,80.68,80.65,11.43896204]
[1770989617151,0.1,80.68,80.65,23.83817048]
[1770989617361,0.1,80.68,80.64,11.43896204]
[1770989618150,11.43896204,80.71,80.67,11.43896204]
[1770989618545,11.43896204,80.72,80.68,11.43896204]
[1770989618944,11.43896204,80.72,80.651,0.14216157]
[1770989618945,11.43896204,80.72,80.67,11.43896204]
[1770989619552,12.38865694,80.719,80.671,12.39602831]
[1770989619754,11.43896204,80.71,80.66,11.43896204]
[1770989619965,11.43896204,80.69,80.641,12.40063987]
[1770989620469,11.43896204,80.69,80.641,43.40223955]
[1770989620766,11.43896204,80.69,80.641,12.40063987]
[1770989620967,11.43896204,80.7,80.66,11.43896204]
[1770989621166,11.43896204,80.71,80.67,11.43896204]
[1770989621365,43.3602993,80.719,80.67,11.43896204]
[1770989621545,43.3602993,80.719,80.641,105.54760048]
[1770989621546,12.38744689,80.727,80.661,0.14216157]
[1770989621747,12.38558812,80.739,80.69,11.43896204]
[1770989621947,11.43896204,80.73,80.69,11.43896204]
[1770989622348,43.34955844,80.739,80.69,11.43896204]
[1770989622957,43.34955844,80.739,80.648,254.19105245]
[1770989622958,0.1,80.74,80.71,11.43896204]
[1770989623361,0.1,80.74,80.72,11.43896204]
[1770989623549,0.1,80.74,80.711,12.38988489]
[1770989623973,11.43896204,80.73,80.68,11.43896204]
[1770989624355,11.43896204,80.72,80.67,11.43896204]
[1770989625165,11.43896204,80.7,80.65,11.43896204]
[1770989625653,11.43896204,80.7,80.651,12.3991023]
[1770989625858,11.43896204,80.7,80.651,43.39685806]
[1770989626057,11.43896204,80.69,80.637,31.00312222]
[1770989626354,43.36620904,80.708,80.64,11.43896204]
[1770989626565,11.43896204,80.7,80.65,11.43896204]
[1770989627969,11.43896204,80.69,80.64,11.43896204]
[1770989628160,12.39172728,80.699,80.65,11.43896204]
[1770989628355,12.38942438,80.714,80.66,11.43896204]
[1770989628563,11.43896204,80.73,80.68,11.43896204]
[1770989628755,0.1,80.74,80.7,11.43896204]
[1770989628963,0.1,80.74,80.71,11.43896204]
[1770989629576,23.92441748,80.74,80.69,11.43896204]
[1770989629775,12.48545544,80.74,80.7,11.43896204]
[1770989630073,12.38712234,80.729,80.69,11.43896204]
[1770989630258,12.38607971,80.736,80.69,11.43896204]
[1770989630460,0.1,80.74,80.7,11.43896204]
[1770989630661,12.38558812,80.739,80.7,11.43896204]
[1770989630966,12.38558812,80.739,80.69,11.43896204]
[1770989630967,43.34955844,80.739,80.69,11.43896204]
[1770989631184,0.1,80.74,80.7,11.43896204]
[1770989631988,0.1,80.74,80.701,12.39142018]
[1770989632167,0.1,80.74,80.643,49.60073746]
[1770989632364,0.1,80.74,80.7,11.43896204]
[1770989632585,11.53896204,80.74,80.69,11.43896204]
[1770989632960,0.1,80.74,80.7,11.43896204]
[1770989633401,0.1,80.74,80.71,11.43896204]
[1770989634062,0.1,80.74,80.711,12.38988489]
[1770989634461,0.1,80.74,80.72,11.43896204]
[1770989634656,0.1,80.74,80.711,43.36459713]
[1770989635169,0.1,80.75,80.711,43.36459713]
[1770989635483,12.38026578,80.774,80.73,11.43896204]
[1770989635987,12.37271568,80.823,80.721,4.61729252]
[1770989636283,12.37271568,80.823,80.75,11.43896204]
[1770989636284,11.43896204,80.8,80.75,11.43896204]
[1770989636669,11.43896204,80.81,80.76,11.43896204]
[1770989636993,11.43896204,80.82,80.77,11.43896204]
[1770989637776,11.43896204,80.81,80.761,12.38221418]
[1770989639380,43.30664818,80.819,80.761,43.33774964]
[1770989640183,12.37332805,80.819,80.77,11.43896204]
[1770989640381,12.37225645,80.826,80.77,11.43896204]
[1770989640685,0.1,80.83,80.8,11.43896204]
[1770989640891,472.8,80.872,80.791,0.14216157]
[1770989640892,11.43896204,80.86,80.81,11.43896204]
[1770989641186,11.43896204,80.85,80.79,11.43896204]
[1770989641384,11.43896204,80.85,80.8,11.43896204]
[1770989642283,12.36812012,80.854,80.81,11.43896204]
[1770989642582,11.43896204,80.85,80.801,12.37608445]
[1770989642984,12.36720711,80.859,80.81,11.43896204]
[1770989643363,12.36720711,80.859,80.801,43.31629558]
[1770989643364,11.43896204,80.85,80.801,43.31629558]
[1770989643559,11.43896204,80.85,80.77,5.36086188]
[1770989643560,11.43896204,80.83,80.78,11.43896204]
[1770989643768,11.43896204,80.81,80.761,12.38221418]
[1770989643971,4.61729252,80.845,80.761,12.38221418]
[1770989643972,11.43896204,80.82,80.77,11.43896204]
[1770989644180,11.43896204,80.81,80.771,12.38068118]
[1770989645087,11.43896204,80.84,80.79,11.43896204]
[1770989645385,49.45776861,80.878,80.81,11.43896204]
[1770989645386,12.36873678,80.849,80.81,11.43896204]
[1770989645573,12.36873678,80.849,80.8,11.43896204]
[1770989645768,11.43896204,80.84,80.774,4.61729252]
[1770989645968,11.43896204,80.83,80.78,11.43896204]
[1770989646169,23.81073825,80.83,80.781,43.32701996]
[1770989646371,11.43896204,80.82,80.776,12.37981315]
[1770989646576,11.43896204,80.82,80.771,12.38068118]
[1770989646991,11.43896204,80.81,80.771,12.38068118]
[1770989647369,11.43896204,80.81,80.771,13.02001314]
[1770989647592,0.63685694,80.813,80.772,0.63933196]
[1770989648081,0.63685694,80.813,80.773,12.38037463]
[1770989648273,0.63685694,80.813,80.774,0.63933196]
[1770989648274,11.43896204,80.81,80.774,0.63933196]
[1770989648584,12.37439984,80.812,80.774,0.63933196]
[1770989648775,11.43896204,80.81,80.774,0.63933196]
[1770989648970,0.63685694,80.825,80.774,0.63933196]
[1770989648971,11.43896204,80.82,80.774,0.63933196]
[1770989649174,12.37332805,80.819,80.774,0.63933196]
[1770989649575,11.43896204,80.81,80.774,0.63933196]
[1770989649778,0.63685694,80.809,80.761,0.63933196]
[1770989649973,11.43896204,80.8,80.761,13.02154614]
[1770989650306,11.43896204,80.79,80.761,0.63933196]
[1770989650592,11.43896204,80.78,80.749,0.63933196]
[1770989650994,11.43896204,80.78,80.738,0.63933196]
[1770989651291,11.43896204,80.77,80.739,12.38558812]
[1770989651474,0.63685694,80.779,80.738,0.63933196]
[1770989651973,11.43896204,80.76,80.729,0.63933196]
[1770989652172,11.43896204,80.76,80.719,13.02786625]
[1770989652173,12.38252083,80.759,80.719,13.02786625]
[1770989652386,11.43896204,80.75,80.719,0.63933196]
[1770989652694,12.38186297,80.764,80.721,0.63933196]
[1770989652991,11.43896204,80.76,80.721,0.63933196]
[1770989653185,11.43896204,80.77,80.721,0.63933196]
[1770989653396,13.01631199,80.779,80.731,0.63933196]
[1770989653582,13.01631199,80.779,80.703,0.63933196]
[1770989653583,11.43896204,80.74,80.703,0.63933196]
[1770989653974,11.43896204,80.73,80.703,0.63933196]
[1770989654171,12.38420765,80.748,80.705,12.39080602]
[1770989654379,12.38420765,80.748,80.689,0.63933196]
[1770989654380,11.43896204,80.73,80.689,0.63933196]
[1770989654581,11.43896204,80.73,80.69,0.63933196]
[1770989654780,11.43896204,80.74,80.691,0.63933196]
[1770989654981,11.43896204,80.74,80.69,11.43896204]
[1770989654982,12.38420765,80.748,80.701,0.63933196]
[1770989655572,11.43896204,80.74,80.701,0.63933196]
[1770989656504,11.43896204,80.73,80.682,0.63933196]
[1770989656684,0.63685694,80.738,80.691,0.63933196]
[1770989656885,0.63685694,80.729,80.682,0.63933196]
[1770989657090,12.38558812,80.739,80.701,0.63933196]
[1770989657292,11.43896204,80.73,80.701,0.63933196]
[1770989657594,12.38558812,80.739,80.682,0.63933196]
[1770989657798,12.38558812,80.739,80.691,0.63933196]
[1770989657983,43.34955844,80.739,80.691,0.63933196]
[1770989658185,12.38558812,80.739,80.701,0.63933196]
[1770989658583,0.63685694,80.756,80.711,0.63933196]
[1770989658889,49.51025047,80.792,80.721,0.63933196]
[1770989658890,0.63685694,80.768,80.721,0.63933196]
[1770989659194,12.38015052,80.775,80.731,0.63933196]
[1770989659394,0.63685694,80.769,80.731,0.63933196]
[1770989659798,11.43896204,80.75,80.713,0.63933196]
[1770989660711,11.43896204,80.76,80.721,0.63933196]
[1770989661617,12.38116439,80.768,80.721,0.63933196]
[1770989662029,11.43896204,80.78,80.731,0.63933196]
[1770989662617,0.63685694,80.759,80.721,0.63933196]
[1770989662818,11.43896204,80.76,80.721,0.63933196]
[1770989664433,43.32809269,80.779,80.721,0.63933196]
[1770989664434,11.43896204,80.77,80.721,0.63933196]
[1770989664734,12.37945505,80.779,80.741,0.63933196]
[1770989665224,12.3783745,80.787,80.741,0.63933196]
[1770989665530,49.47528621,80.849,80.741,0.63933196]
[1770989665531,0.63685694,80.809,80.761,0.63933196]
[1770989666038,11.43896204,80.8,80.761,0.63933196]
[1770989666524,11.43896204,80.81,80.761,0.63933196]
[1770989666701,11.43896204,80.81,80.771,0.63933196]
[1770989666907,11.3685032,80.8,80.771,0.63933196]
[1770989667121,12.00536014,80.82,80.771,0.63933196]
[1770989667299,24.37857624,80.82,80.771,0.63933196]
[1770989667499,11.3685032,80.81,80.771,0.63933196]
[1770989668629,12.37485923,80.809,80.772,12.3805279]
[1770989668810,0.63685694,80.808,80.762,0.63933196]
[1770989669316,0.63685694,80.799,80.762,0.63933196]
[1770989669631,0.63685694,80.799,80.761,12.38221418]
[1770989670503,12.3763814,80.8,80.764,0.63933196]
[1770989670697,23.7448846,80.8,80.764,0.63933196]
[1770989671204,11.3685032,80.79,80.753,0.63565569]
[1770989671514,0.63735154,80.799,80.753,0.63565569]
[1770989671706,0.63735154,80.799,80.76,12.00415889]
[1770989671910,0.63735154,80.799,80.761,0.63565569]
[1770989672425,4.61729252,80.825,80.76,11.3685032]
[1770989672426,0.63735154,80.897,80.794,0.63565569]
[1770989672604,0.63735154,80.889,80.85,11.3685032]
[1770989672798,11.3685032,80.88,80.84,11.3685032]
[1770989673025,0.63735154,80.879,80.849,6.464]
[1770989673506,11.3685032,80.86,80.849,5.72279974]
[1770989673715,11.3685032,80.86,80.8,12.37623762]
[1770989673911,4.61729252,80.869,80.801,0.68658802]
[1770989674109,11.3685032,80.83,80.801,0.68658802]
[1770989674309,11.3685032,80.84,80.801,0.68658802]
[1770989674506,11.3685032,80.85,80.812,12.37439984]
[1770989674719,11.3685032,80.85,80.813,0.68658802]
[1770989674903,12.36862634,80.85,80.813,0.68658802]
[1770989675106,23.73712954,80.85,80.813,0.68658802]
[1770989675717,11.3685032,80.84,80.789,0.82874959]
[1770989675913,11.3685032,80.85,80.811,0.68658802]
[1770989676113,12.36873678,80.849,80.811,0.68658802]
[1770989676313,11.3685032,80.84,80.811,0.68658802]
[1770989676720,23.73872378,80.84,80.811,0.68658802]
[1770989676924,11.3685032,80.83,80.799,0.68658802]
[1770989677309,43.29550509,80.84,80.771,30.95164079]
[1770989677310,11.3685032,80.82,80.781,0.68658802]
[1770989677736,11.3685032,80.83,80.791,0.68658802]
[1770989677925,12.37022058,80.84,80.801,0.68658802]
[1770989677926,11.3685032,80.84,80.801,0.68658802]
[1770989678230,11.3685032,80.84,80.8,11.3685032]
[1770989678231,11.3685032,80.85,80.811,0.68658802]
[1770989678736,12.36873678,80.849,80.813,0.68658802]
[1770989679428,11.3685032,80.84,80.813,0.68658802]
[1770989679624,12.36873678,80.849,80.813,0.68658802]
[1770989680139,11.3685032,80.84,80.8,12.05509122]
[1770989680341,11.3685032,80.84,80.801,0.68658802]
[1770989680539,11.3685032,80.83,80.801,0.68658802]
[1770989680744,11.3685032,80.82,80.781,12.37912139]
[1770989681033,11.3685032,80.8,80.769,13.06755539]
[1770989681238,11.3685032,80.82,80.781,0.68658802]
[1770989681543,11.3685032,80.83,80.801,0.68658802]
[1770989683144,12.37179725,80.829,80.801,0.68658802]
[1770989683348,11.3685032,80.85,80.811,0.68658802]
[1770989683732,11.3685032,80.83,80.791,0.68658802]
[1770989683934,11.3685032,80.84,80.801,0.68658802]
[1770989685139,12.37026682,80.839,80.802,12.37593128]
[1770989685446,12.37026682,80.839,80.803,0.68658802]
[1770989686345,11.3685032,80.84,80.805,0.68658802]
[1770989687124,30.92073382,80.852,80.805,0.68658802]
[1770989687125,11.3685032,80.83,80.805,0.68658802]
[1770989688129,11.3685032,80.84,80.805,0.68658802]
[1770989688446,11.3685032,80.83,80.805,0.68658802]
[1770989689239,43.29593388,80.839,80.807,0.68658802]
[1770989689240,12.37026682,80.839,80.807,0.68658802]
[1770989690858,30.92169524,80.85,80.811,0.68658802]
[1770989691032,42.29019844,80.85,80.811,0.68658802]
[1770989691348,11.3685032,80.84,80.811,0.68658802]
[1770989692450,11.3685032,80.83,80.791,0.68658802]
[1770989692748,11.3685032,80.83,80.79,11.3685032]
[1770989692749,11.3685032,80.84,80.801,12.37608445]
[1770989692948,11.3685032,80.83,80.801,13.06267247]
[1770989693165,43.28468957,80.86,80.801,12.37608445]
[1770989693372,11.3685032,80.84,80.811,0.68658802]
[1770989693669,11.3685032,80.83,80.791,0.68658802]
[1770989693956,11.3685032,80.83,80.792,0.68658802]
[1770989694546,11.3685032,80.84,80.801,0.68658802]
[1770989694833,23.73872302,80.84,80.803,0.68658802]
[1770989695134,54.66400753,80.84,80.803,0.68658802]
[1770989695347,11.3685032,80.83,80.803,0.68658802]
[1770989696559,11.3685032,80.82,80.792,0.68658802]
[1770989696933,12.37332805,80.819,80.792,0.68658802]
[1770989697135,12.37179725,80.829,80.794,0.68658802]
[1770989697754,43.30129037,80.829,80.794,0.68658802]
[1770989698249,11.3685032,80.81,80.78,0.68658802]
[1770989698453,11.3685032,80.8,80.78,0.68658802]
[1770989698653,11.3685032,80.8,80.762,0.68658802]
[1770989699036,12.37639079,80.799,80.762,0.68658802]
[1770989699231,12.37639079,80.799,80.764,0.68658802]
[1770989700051,11.3685032,80.79,80.754,0.68658802]
[1770989700258,43.31736778,80.799,80.761,0.68658802]
[1770989700832,11.3685032,80.78,80.741,0.68658802]
[1770989701142,12.38098775,80.769,80.741,0.68658802]
[1770989701346,11.3685032,80.78,80.743,0.68658802]
[1770989701532,11.3685032,80.77,80.743,0.68658802]
[1770989701735,11.3685032,80.76,80.731,0.68658802]
[1770989701936,92.83212237,80.791,80.709,0.68658802]
[1770989701937,11.3685032,80.74,80.709,0.68658802]
[1770989702261,11.3685032,80.74,80.711,0.68658802]
[1770989702453,11.3685032,80.75,80.721,0.68658802]
[1770989703037,45.42,80.766,80.728,0.68658802]
[1770989703038,11.3685032,80.76,80.728,0.68658802]
[1770989703242,11.3685032,80.76,80.71,43.36513442]
[1770989703243,0.12498,80.73,80.715,0.68658802]
[1770989703456,12.38252083,80.759,80.721,0.68658802]
[1770989704654,43.33882291,80.759,80.721,0.68658802]
[1770989705538,11.3685032,80.75,80.721,0.68658802]
[1770989706855,43.33882291,80.759,80.723,0.68658802]
[1770989706856,12.38252083,80.759,80.723,0.68658802]
[1770989707053,11.3685032,80.76,80.723,0.68658802]
[1770989707360,11.3685032,80.76,80.722,12.38819652]
[1770989707361,12.38224522,80.761,80.731,0.68658802]
[1770989707543,42.31308368,80.79,80.751,0.68658802]
[1770989707738,11.3685032,80.79,80.751,0.68658802]
[1770989708736,11.3685032,80.8,80.761,0.68658802]
[1770989708936,12.37569819,80.804,80.771,0.68658802]
[1770989709139,11.3685032,80.79,80.756,0.68658802]
[1770989709336,12.37792273,80.789,80.761,0.68658802]
[1770989710671,12.37485923,80.809,80.771,0.68658802]
[1770989710838,11.3685032,80.8,80.771,0.68658802]
[1770989711268,11.3685032,80.78,80.715,0.68658802]
[1770989711470,11.3685032,80.78,80.741,0.68658802]
[1770989711847,11.3685032,80.76,80.731,0.68658802]
[1770989712153,43.32272957,80.789,80.741,0.68658802]
[1770989712344,11.3685032,80.78,80.741,0.68658802]
[1770989712545,11.3685032,80.77,80.741,0.68658802]
[1770989712870,11.3685032,80.76,80.721,0.68658802]
[1770989713173,11.3685032,80.75,80.721,0.68658802]
[1770989713466,12.38405429,80.749,80.721,13.07480312]
[1770989713762,12.38405429,80.749,80.721,0.68658802]
[1770989713961,49.51725563,80.78,80.721,0.68658802]
[1770989713962,12.38160094,80.765,80.731,0.68658802]
[1770989714141,11.3685032,80.76,80.731,0.68658802]
[1770989714661,49.49866629,80.811,80.731,0.68658802]
[1770989714662,11.3685032,80.77,80.731,0.68658802]
[1770989715656,12.38098775,80.769,80.733,0.68658802]
[1770989716355,43.33345713,80.769,80.733,0.68658802]
[1770989716545,11.3685032,80.76,80.733,0.68658802]
[1770989716859,11.3685032,80.74,80.71,0.68658802]
[1770989717049,11.3685032,80.73,80.71,0.68658802]
[1770989717250,11.3685032,80.74,80.71,0.68658802]
[1770989717665,12.38558812,80.739,80.71,0.68658802]
[1770989717979,12.38558812,80.739,80.668,49.5857474]
[1770989717980,11.3685032,80.73,80.683,0.68658802]
[1770989718157,11.3685032,80.73,80.691,0.68658802]
[1770989719666,11.3685032,80.71,80.671,0.68658802]
[1770989720457,11.3685032,80.7,80.67,0.2]
[1770989720659,11.3685032,80.68,80.658,0.68658802]
[1770989720964,11.3685032,80.69,80.658,0.68658802]
[1770989721344,11.3685032,80.68,80.648,0.68658802]
[1770989721555,11.3685032,80.68,80.65,0.68658802]
[1770989721961,12.39479914,80.679,80.65,0.68658802]
[1770989722749,11.3685032,80.67,80.637,0.68658802]
[1770989723063,43.38179699,80.679,80.611,0.68658802]
[1770989723064,11.3685032,80.65,80.611,0.68658802]
[1770989723255,11.3685032,80.65,80.612,0.68658802]
[1770989723470,11.3685032,80.65,80.61,11.5685032]
[1770989723843,11.3685032,80.67,80.63,11.3685032]
[1770989724048,11.3685032,80.67,80.64,11.3685032]
[1770989724548,11.3685032,80.66,80.62,11.3685032]
[1770989724755,0.65621802,80.649,80.61,11.5685032]
[1770989724951,11.3685032,80.64,80.61,0.2]
[1770989725154,11.3685032,80.63,80.61,0.2]
[1770989725354,11.3685032,80.62,80.6,0.2]
[1770989725972,12.40402386,80.619,80.6,0.2]
[1770989726155,11.3685032,80.61,80.59,0.2]
[1770989726344,43.41408352,80.619,80.59,0.2]
[1770989726549,11.3685032,80.61,80.59,0.2]
[1770989726847,0.65621802,80.618,80.59,0.2]
[1770989727046,12.40402386,80.619,80.59,11.5685032]
[1770989727245,12.40402386,80.619,80.591,0.65696533]
[1770989727449,12.40334824,80.624,80.592,0.65696533]
[1770989727663,12.40334824,80.624,80.601,0.65696533]
[1770989728072,45.36,80.643,80.601,0.65696533]
[1770989728073,11.3685032,80.63,80.601,0.65696533]
[1770989728252,43.40331601,80.639,80.601,0.65696533]
[1770989728454,12.40094743,80.639,80.602,12.40664003]
[1770989728969,12.40094743,80.639,80.611,0.65696533]
[1770989729571,11.41505582,80.62,80.59,0.2]
[1770989730078,0.65621802,80.618,80.59,0.2]
[1770989730255,11.41505582,80.61,80.59,0.2]
[1770989731284,11.41505582,80.6,80.57,11.41505582]
[1770989731453,12.08356127,80.61,80.571,0.67296648]
[1770989731654,11.41505582,80.6,80.571,0.67296648]
[1770989732177,12.40695321,80.6,80.571,0.67296648]
[1770989732552,0.49618806,80.682,80.581,0.67296648]
[1770989732775,0.49618806,80.669,80.631,0.67296648]
[1770989732986,11.91124388,80.65,80.61,11.41505582]
[1770989733154,0.49618806,80.65,80.61,11.41505582]
[1770989733352,0.49618806,80.65,80.6,11.41505582]
[1770989733551,11.91124388,80.65,80.6,11.41505582]
[1770989733753,0.49684921,80.629,80.573,0.67296648]
[1770989734073,0.49684921,80.625,80.58,12.0880223]
[1770989734249,0.49684921,80.625,80.581,0.67296648]
[1770989735151,0.49749751,80.623,80.581,0.67296648]
[1770989735874,0.49749751,80.623,80.59,11.41505582]
[1770989736067,12.40156259,80.635,80.601,0.65257824]
[1770989736771,12.40156259,80.635,80.571,0.14216157]
[1770989736772,0.49941221,80.634,80.59,12.06763406]
[1770989736995,0.49941221,80.634,80.592,0.65257824]
[1770989737269,12.40156259,80.635,80.601,0.65257824]
[1770989737656,45.46,80.634,80.601,0.65257824]
[1770989738072,0.50003576,80.633,80.582,0.65257824]
[1770989738372,0.50003576,80.633,80.591,0.65257824]
[1770989738373,43.40708403,80.632,80.591,0.65257824]
[1770989738773,43.40708403,80.632,80.6,0.65257824]
[1770989738970,12.40202401,80.632,80.6,12.06763406]
[1770989739478,0.50065176,80.631,80.591,0.65257824]
[1770989739777,12.40202401,80.632,80.601,0.65257824]
[1770989740150,0.50126235,80.631,80.59,11.41505582]
[1770989740373,0.50126235,80.631,80.592,0.65257824]
[1770989741876,0.50126235,80.631,80.561,0.14216157]
[1770989741877,43.40708403,80.632,80.601,0.65257824]
[1770989742279,12.40202401,80.632,80.601,0.65257824]
[1770989743477,12.40202401,80.632,80.591,12.40833343]
[1770989743478,0.50303486,80.631,80.591,0.65257824]
[1770989744382,12.40202401,80.632,80.581,0.65257824]
[1770989744383,0.50361511,80.629,80.581,0.65257824]
[1770989744557,0.50361511,80.627,80.581,0.65257824]
[1770989744965,0.50361511,80.627,80.582,0.65257824]
[1770989745263,45.56,80.626,80.591,0.65257824]
[1770989745478,12.4014088,80.636,80.611,0.65257824]
[1770989745986,12.4014088,80.636,80.601,0.65257824]
[1770989747454,43.4049308,80.636,80.601,0.65257824]
[1770989747655,43.4049308,80.636,80.602,0.65257824]
[1770989747881,45.58,80.637,80.61,11.41505582]
[1770989748184,12.40084035,80.64,80.62,11.41505582]
[1770989748376,45.62,80.642,80.611,0.65257824]
[1770989748577,43.39255383,80.659,80.63,11.41505582]
[1770989748778,12.39787252,80.659,80.64,11.41505582]
[1770989749084,30.98708441,80.679,80.641,0.65257824]
[1770989749259,30.98708441,80.679,80.64,11.41505582]
[1770989749260,11.92147119,80.68,80.634,0.65257824]
[1770989749460,0.50641537,80.677,80.634,0.65257824]
[1770989749660,0.50695872,80.669,80.623,0.65257824]
[1770989750280,0.50695872,80.669,80.625,0.65257824]
[1770989750478,43.3823347,80.678,80.64,11.41505582]
[1770989750687,43.3823347,80.678,80.641,0.65257824]
[1770989751265,12.39495277,80.678,80.651,0.65257824]
[1770989751480,45.64,80.685,80.661,0.65257824]
[1770989752180,45.64,80.685,80.645,0.65257824]
[1770989752365,45.64,80.684,80.651,0.65257824]
[1770989752566,45.64,80.684,80.661,0.65257824]
[1770989753165,45.64,80.684,80.651,0.65257824]
[1770989753475,45.66,80.683,80.651,0.65257824]
[1770989753677,43.38018392,80.682,80.651,0.65257824]
[1770989753858,12.39433826,80.682,80.653,0.65257824]
[1770989754786,12.39172728,80.699,80.661,0.65257824]
[1770989755079,45.68,80.698,80.661,0.65257824]
[1770989755277,0.50957443,80.697,80.661,0.65257824]
[1770989755482,46.18957443,80.697,80.661,0.65257824]
[1770989755868,43.37265787,80.696,80.661,0.65257824]
[1770989756078,43.37265787,80.696,80.647,0.65257824]
[1770989756079,0.51008397,80.689,80.647,0.65257824]
[1770989756271,0.51008397,80.689,80.651,0.65257824]
[1770989756462,43.37265787,80.696,80.651,0.65257824]
[1770989756663,43.88274184,80.696,80.651,0.65257824]
[1770989756861,12.39134058,80.702,80.671,0.65257824]
[1770989757059,45.7,80.7,80.671,0.65257824]
[1770989757279,57.11505582,80.7,80.66,12.06763406]
[1770989757459,0.51059463,80.699,80.661,0.65257824]
[1770989757660,0.51059463,80.699,80.651,0.65257824]
[1770989758864,57.11505582,80.7,80.653,0.65257824]
[1770989758865,0.51159095,80.697,80.653,0.65257824]
[1770989759094,43.37158292,80.698,80.661,0.65257824]
[1770989759265,45.72,80.697,80.661,0.65257824]
[1770989760870,11.92809788,80.68,80.641,0.67959463]
[1770989761069,11.92809788,80.68,80.586,49.63601446]
[1770989761070,0.51304206,80.679,80.631,0.67959463]
[1770989761269,92.94140972,80.696,80.621,0.67959463]
[1770989761270,11.41505582,80.65,80.621,0.67959463]
[1770989761587,11.41505582,80.63,80.602,0.67959463]
[1770989761895,11.41505582,80.62,80.592,0.67959463]
[1770989762600,45.72,80.619,80.592,0.67959463]
[1770989762801,0.51398389,80.609,80.565,0.67959463]
[1770989762977,43.42000793,80.608,80.571,0.67959463]
[1770989763669,11.41505582,80.6,80.571,0.67959463]
[1770989763882,12.40474757,80.615,80.581,0.67959463]
[1770989764078,11.41505582,80.61,80.581,0.67959463]
[1770989764263,11.41505582,80.61,80.57,11.41505582]
[1770989764264,11.41505582,80.61,80.571,0.67959463]
[1770989764689,11.41505582,80.6,80.571,0.67959463]
[1770989764985,12.40710182,80.599,80.561,13.0925446]
[1770989765290,43.42485638,80.599,80.561,13.0925446]
[1770989765683,11.41505582,80.59,80.56,12.09465045]